bitfinex/quotes_SOLUSD_20241101
["timestamp","ask_amount","ask_price","bid_price","bid_amount"]
[1730480812502,0.6134955,167.15,167.14,23.17069029]
[1730480813805,0.6134955,167.15,167.14,23.29618029]
[1730480814013,0.6134955,167.15,167.14,67.19855429]
[1730480815420,0.6134955,167.15,167.14,17.18769029]
[1730480815613,5.983,167.14,167.12,17.18769029]
[1730480815786,23.776884,167.12,166.98,22.4858]
[1730480815986,5.984,167.11,166.98,20.9604]
[1730480816410,20.9442,167.11,166.98,14.9718]
[1730480816600,23.902374,167.09,166.98,14.9718]
[1730480816787,23.902374,167.09,166.97,6.24808699]
[1730480817206,23.776884,167.1,166.98,0.12549]
[1730480817512,23.776884,167.1,166.97,6.24808699]
[1730480817696,0.12549,167.09,166.97,6.24808699]
[1730480818018,20.9479,167.08,166.97,6.24808699]
[1730480818603,5.9851,167.08,166.97,12.23698699]
[1730480818916,5.9851,167.08,166.97,27.20968699]
[1730480819215,27.55209948,167.02,166.97,54.76178647]
[1730480819893,5.9847,167.09,166.98,0.12549]
[1730480820396,27.55209948,167.05,167.0,27.55209948]
[1730480820810,29.9204,167.11,166.98,24.027864]
[1730480821012,5.9844,167.1,166.99,5.9883]
[1730480821406,27.55209948,167.06,167.01,27.55209948]
[1730480822415,23.902374,167.09,166.97,27.21329721]
[1730480822714,23.902374,167.09,166.97,6.25159721]
[1730480822898,20.9479,167.08,166.97,6.25159721]
[1730480823093,50.249174,167.07,166.97,6.25159721]
[1730480823321,50.249174,167.07,166.92,27.6211]
[1730480823526,26.3468,167.07,166.97,6.23525429]
[1730480823817,20.9479,167.08,166.98,0.12549]
[1730480823996,20.9479,167.08,166.97,6.25084498]
[1730480824197,27.55209948,167.05,167.0,27.55209948]
[1730480825001,5.9865,167.04,167.0,27.55209948]
[1730480825308,5.9844,167.1,167.01,24.027864]
[1730480825510,5.9837,167.12,167.03,23.902374]
[1730480826007,33.53579948,167.12,167.04,0.12549]
[1730480826319,27.55209948,167.13,167.09,27.55209948]
[1730480826499,33.53539948,167.13,167.09,27.55209948]
[1730480826706,28.16559498,167.15,167.08,0.12549]
[1730480827022,28.16559498,167.15,167.04,27.55209948]
[1730480827023,0.6134955,167.15,167.12,0.12549]
[1730480827323,0.6134955,167.15,167.14,71.70545348]
[1730480827506,0.6134955,167.15,167.14,47.67758948]
[1730480827700,0.6134955,167.15,167.14,71.70545348]
[1730480828894,0.6134955,167.15,167.14,77.68845348]
[1730480830499,27.55209948,167.26,167.16,0.12549]
[1730480830699,5.979,167.25,167.16,0.12549]
[1730480830919,5.979,167.25,167.21,27.55209948]
[1730480832719,5.979,167.25,167.16,0.12549]
[1730480832720,27.55209948,167.24,167.14,14.9575]
[1730480832912,27.55209948,167.23,167.18,27.55209948]
[1730480833307,27.55209948,167.24,167.19,27.55209948]
[1730480833501,27.55209948,167.24,167.14,14.9575]
[1730480833714,27.55209948,167.24,167.2,27.55209948]
[1730480834207,5.9785,167.27,167.17,0.12549]
[1730480834421,5.9785,167.27,167.17,23.902374]
[1730480834631,0.6134955,167.31,167.2,0.12549]
[1730480834928,5.9776,167.29,167.21,20.9317]
[1730480835820,5.9776,167.29,167.2,27.55209948]
[1730480836128,5.4776,167.29,167.17,20.9356]
[1730480836338,20.4217,167.29,167.17,14.954]
[1730480836540,23.902374,167.28,167.11,5.9838]
[1730480836833,23.902374,167.26,167.1,20.945]
[1730480837525,23.776884,167.24,167.1,20.945]
[1730480837726,20.9291,167.23,167.1,14.961]
[1730480838212,20.9291,167.23,167.14,27.55209948]
[1730480838530,27.55209948,167.18,167.13,27.55209948]
[1730480838827,20.9291,167.23,167.15,27.55209948]
[1730480839008,27.55209948,167.2,167.15,27.55209948]
[1730480839208,20.9291,167.23,167.11,20.9442]
[1730480839411,20.9291,167.23,167.14,27.55209948]
[1730480839611,23.902374,167.22,167.08,21.627]
[1730480839831,27.55209948,167.2,167.11,27.55209948]
[1730480840131,23.776884,167.22,167.08,14.9627]
[1730480840439,27.55209948,167.19,167.14,27.55209948]
[1730480840626,50.828,167.23,167.09,0.12549]
[1730480840810,27.55209948,167.19,167.14,27.55209948]
[1730480841124,27.55209948,167.18,167.13,27.55209948]
[1730480842117,27.55209948,167.17,167.12,27.55209948]
[1730480842318,33.53399948,167.17,167.12,27.55209948]
[1730480842922,5.9819,167.17,167.13,27.55209948]
[1730480843527,5.9819,167.17,167.12,27.55209948]
[1730480843948,5.9819,167.17,167.1,20.9455]
[1730480844149,5.9819,167.17,167.13,27.55209948]
[1730480844721,5.9819,167.17,167.1,14.9611]
[1730480844927,20.9367,167.17,167.07,14.9636]
[1730480845224,20.9367,167.17,167.08,5.985]
[1730480845527,27.55209948,167.16,167.11,27.55209948]
[1730480846241,48.48879948,167.17,167.12,27.55209948]
[1730480846438,20.9367,167.17,167.11,27.55209948]
[1730480846631,27.55209948,167.16,167.11,27.55209948]
[1730480847738,27.55209948,167.13,167.08,27.55209948]
[1730480848042,20.9367,167.17,167.06,27.55209948]
[1730480848043,27.55209948,167.11,167.06,27.55209948]
[1730480848434,6.3716,167.14,167.01,14.9687]
[1730480848645,6.3716,167.14,167.02,6.25206072]
[1730480848646,27.55209948,167.09,167.02,6.25206072]
[1730480848844,27.55209948,167.09,167.04,27.55209948]
[1730480849145,27.55209948,167.1,167.02,6.25206072]
[1730480849341,20.9417,167.13,167.02,6.25206072]
[1730480849342,23.902374,167.12,167.02,6.25206072]
[1730480849550,27.55209948,167.04,166.99,27.55209948]
[1730480849723,43.902374,167.1,166.97,6.25419483]
[1730480849921,23.902374,167.1,166.97,27.21579483]
[1730480850139,23.902374,167.1,166.97,6.25419483]
[1730480850741,23.902374,167.08,166.97,6.25419483]
[1730480851049,23.902374,167.08,166.94,14.9753]
[1730480851224,23.902374,167.08,166.93,12.66813173]
[1730480851424,23.902374,167.08,166.93,12.24523173]
[1730480851754,50.8705,167.09,166.89,12.5123]
[1730480851755,23.902374,167.04,166.89,12.5123]
[1730480851923,23.776884,167.03,166.89,27.4922]
[1730480852122,23.776884,167.03,166.91,6.24914192]
[1730480852522,27.55209948,166.98,166.93,27.55209948]
[1730480853147,5.9873,167.02,166.92,5.9908]
[1730480853446,27.55209948,166.98,166.93,27.55209948]
[1730480853825,27.55209948,166.97,166.92,33.54289948]
[1730480854140,27.55209948,166.99,166.94,27.55209948]
[1730480854348,27.55209948,166.97,166.92,27.55209948]
[1730480854729,27.55209948,167.04,166.92,24.027864]
[1730480854937,27.55209948,167.05,167.0,27.55209948]
[1730480855248,27.55209948,167.06,166.99,14.9706]
[1730480855547,6.1678,167.12,167.0,0.25098]
[1730480855757,27.55209948,167.1,167.05,27.55209948]
[1730480856046,5.9839,167.12,167.0,24.027864]
[1730480856432,27.55209948,167.1,167.05,27.55209948]
[1730480857127,5.9839,167.12,167.0,24.027864]
[1730480857318,21.06469,167.15,167.01,20.9567]
[1730480857524,20.9392,167.15,167.01,20.9567]
[1730480858344,27.55209948,167.09,167.04,27.55209948]
[1730480858735,5.983,167.14,167.01,44.9074]
[1730480858933,27.55209948,167.1,167.05,27.55209948]
[1730480859134,20.9405,167.14,167.04,27.55209948]
[1730480859332,27.55209948,167.09,167.04,27.55209948]
[1730480859841,27.55209948,167.09,167.03,27.55209948]
[1730480860050,27.55209948,167.08,167.03,27.55209948]
[1730480860721,27.55209948,167.09,167.04,27.55209948]
[1730480861446,27.55209948,167.07,167.02,27.55209948]
[1730480861625,27.55209948,167.04,166.99,33.54009948]
[1730480861830,27.55209948,167.04,166.99,27.55209948]
[1730480862043,14.9636,167.08,166.97,14.9722]
[1730480862542,27.55209948,167.02,166.97,42.52429948]
[1730480862932,14.9636,167.08,166.97,20.9612]
[1730480863448,27.55209948,167.03,166.98,27.55209948]
[1730480864230,27.55209948,167.03,166.99,20.9592]
[1730480864432,5.9855,167.07,166.98,5.9887]
[1730480864646,20.9492,167.07,166.96,20.9629]
[1730480865050,27.55209948,167.02,166.97,27.55209948]
[1730480865649,36.4037,167.07,166.96,48.51499948]
[1730480865950,27.55209948,167.04,166.99,27.55209948]
[1730480866329,27.55209948,167.03,166.98,27.55209948]
[1730480867929,20.9504,167.06,166.96,20.9629]
[1730480868128,23.902374,167.05,166.93,6.25410854]
[1730480868330,27.55209948,166.99,166.94,27.55209948]
[1730480868954,27.55209948,167.0,166.95,27.55209948]
[1730480869159,27.55209948,166.99,166.94,27.55209948]
[1730480869446,5.9887,166.98,166.94,27.55209948]
[1730480869753,33.54079948,166.98,166.93,39.79660802]
[1730480870731,27.55209948,166.99,166.94,27.55209948]
[1730480871634,27.55209948,166.98,166.93,39.79660802]
[1730480871836,27.55209948,166.99,166.94,27.55209948]
[1730480872047,27.55209948,167.0,166.95,27.55209948]
[1730480872249,20.9542,167.03,166.93,27.22080854]
[1730480872250,20.9542,167.03,166.94,27.55209948]
[1730480872434,27.55209948,166.99,166.94,27.55209948]
[1730480873043,33.54029948,167.0,166.95,33.54189948]
[1730480873857,5.9882,167.0,166.93,21.23040854]
[1730480874059,27.55209948,166.98,166.93,48.78250802]
[1730480874245,27.55209948,166.99,166.94,27.55209948]
[1730480875052,5.9887,166.98,166.9,14.9786]
[1730480875255,5.9887,166.98,166.91,5.9912]
[1730480875558,5.9887,166.98,166.91,20.9693]
[1730480875963,33.54079948,166.98,166.94,27.55209948]
[1730480876196,33.54079948,166.98,166.93,27.55209948]
[1730480876660,5.9887,166.98,166.92,27.55209948]
[1730480877042,27.55209948,166.95,166.9,12.24743367]
[1730480877354,20.9605,166.98,166.87,5.9923]
[1730480877552,5.9887,166.98,166.89,6.2567106]
[1730480877757,27.55209948,166.97,166.9,0.12549]
[1730480878133,5.9887,166.98,166.93,27.55209948]
[1730480878639,27.55209948,166.97,166.93,27.55209948]
[1730480878835,33.54139948,166.97,166.93,27.55209948]
[1730480879039,20.0,167.03,166.94,27.55209948]
[1730480879239,27.55209948,167.01,166.92,20.9677]
[1730480879449,27.55209948,167.02,166.96,27.55209948]
[1730480880059,27.55209948,167.01,166.96,27.55209948]
[1730480880364,27.55209948,166.99,166.94,27.55209948]
[1730480880736,20.9542,167.03,166.93,16.0315]
[1730480880944,27.55209948,167.01,166.96,27.55209948]
[1730480881454,5.9869,167.03,166.95,20.9643]
[1730480881765,27.55209948,166.99,166.95,20.9643]
[1730480881942,27.55209948,166.99,166.94,27.55209948]
[1730480882149,27.55209948,166.98,166.93,33.54239948]
[1730480882361,27.55209948,166.99,166.94,27.55209948]
[1730480882860,27.55209948,166.98,166.93,33.54239948]
[1730480883751,14.9673,167.03,166.93,33.54239948]
[1730480883752,27.55209948,167.0,166.95,27.55209948]
[1730480884365,23.902374,167.01,166.9,14.9786]
[1730480884569,27.55209948,166.97,166.91,27.55209948]
[1730480885042,27.55209948,166.95,166.9,42.53069948]
[1730480885367,27.55209948,166.95,166.9,48.52229948]
[1730480885566,14.9682,167.02,166.91,0.12549]
[1730480885867,5.9858,167.06,166.93,0.25098]
[1730480886048,5.9858,167.06,166.96,0.12549]
[1730480886244,27.55209948,167.04,166.99,27.55209948]
[1730480886864,5.9869,167.03,166.99,27.55209948]
[1730480887068,5.9869,167.03,166.98,27.55209948]
[1730480887069,33.53899948,167.03,166.98,27.55209948]
[1730480887239,5.9869,167.03,166.97,48.51339948]
[1730480887666,33.53899948,167.03,166.98,27.55209948]
[1730480890286,33.53899948,167.03,166.98,33.54079948]
[1730480890783,33.53899948,167.03,166.98,27.55209948]
[1730480892085,5.9869,167.03,166.94,14.9751]
[1730480892263,27.55209948,167.01,166.96,27.55209948]
[1730480892461,27.55209948,167.0,166.95,27.55209948]
[1730480892688,27.55209948,166.99,166.95,27.55209948]
[1730480893171,27.55209948,166.98,166.93,27.55209948]
[1730480893566,6.4845,167.0,166.92,6.25120281]
[1730480893880,6.4845,167.0,166.9,33.54359948]
[1730480894074,27.55209948,166.94,166.89,39.79469253]
[1730480894388,6.4845,167.0,166.89,12.24259305]
[1730480894883,6.4845,167.0,166.89,6.25079305]
[1730480894884,23.902374,166.98,166.89,6.25079305]
[1730480895481,27.55209948,166.93,166.88,27.55209948]
[1730480895979,16.2911,166.98,166.87,0.12549]
[1730480896193,27.55209948,166.95,166.9,27.55209948]
[1730480896687,33.54249948,166.94,166.89,27.55209948]
[1730480896867,33.54249948,166.94,166.89,33.54399948]
[1730480897188,5.9904,166.94,166.86,27.22267093]
[1730480897382,5.9904,166.94,166.88,27.55209948]
[1730480897568,27.55209948,166.93,166.88,27.55209948]
[1730480898793,5.9903,166.94,166.87,20.9743]
[1730480898977,33.54239948,166.94,166.89,27.55209948]
[1730480900381,27.55209948,166.93,166.89,27.55209948]
[1730480900586,5.9903,166.94,166.86,6.24717093]
[1730480900587,16.6151,166.91,166.86,6.24717093]
[1730480900799,20.0,166.9,166.74,21.6846]
[1730480900997,25.9916,166.9,166.76,14.9911]
[1730480901169,40.9706,166.9,166.79,6.24712631]
[1730480901364,20.0,166.87,166.76,14.9911]
[1730480901672,20.0,166.87,166.73,0.6134955]
[1730480901673,20.0,166.85,166.73,6.6109955]
[1730480901875,23.902374,166.84,166.73,0.6134955]
[1730480902190,20.0,166.83,166.73,0.6134955]
[1730480902391,27.55209948,166.8,166.73,0.6134955]
[1730480902803,5.9955,166.79,166.73,0.6134955]
[1730480903991,27.55209948,166.75,166.73,0.6134955]
[1730480904368,5.9955,166.79,166.73,0.6134955]
[1730480904568,27.55209948,166.74,166.73,0.6134955]
[1730480905575,27.55209948,166.75,166.73,0.6134955]
[1730480905994,5.9967,166.76,166.73,0.6134955]
[1730480906575,27.55209948,166.74,166.73,0.6134955]
[1730480906999,33.54939948,166.74,166.73,0.6134955]
[1730480908798,61.10149896,166.74,166.73,0.6134955]
[1730480909576,33.54939948,166.74,166.73,0.6134955]
[1730480910278,61.10149896,166.74,166.73,0.6134955]
[1730480910474,105.00387296,166.74,166.73,0.6134955]
[1730480911287,33.54939948,166.74,166.73,0.6134955]
[1730480911501,53.54939948,166.74,166.73,0.6134955]
[1730480911872,53.67488948,166.74,166.73,0.6134955]
[1730480912190,81.22698896,166.74,166.73,0.6134955]
[1730480912394,81.10149896,166.74,166.73,0.6134955]
[1730480912589,53.54939948,166.74,166.73,0.6134955]
[1730480914094,77.45177348,166.74,166.73,0.6134955]
[1730480914278,84.9007406,166.74,166.73,0.6134955]
[1730480914475,118.93394008,166.74,166.73,0.6134955]
[1730480914779,0.12549,166.71,166.58,6.0031]
[1730480914976,27.55209948,166.63,166.57,15.6216955]
[1730480915198,27.55209948,166.63,166.57,21.6250955]
[1730480915878,27.55209948,166.64,166.57,21.6250955]
[1730480916286,27.55209948,166.64,166.58,23.776884]
[1730480916479,20.0,166.67,166.57,21.6250955]
[1730480916680,20.0,166.67,166.57,18.6250955]
[1730480917399,20.0,166.67,166.56,21.0134]
[1730480917902,6.0002,166.66,166.57,0.12549]
[1730480918305,6.0002,166.66,166.57,23.902374]
[1730480918599,20.0,166.64,166.55,6.23263534]
[1730480918782,23.902374,166.63,166.53,15.0122]
[1730480919101,0.12549,166.61,166.51,12.42491794]
[1730480919295,20.0,166.6,166.51,12.42491794]
[1730480919593,20.0,166.6,166.51,12.1956]
[1730480919992,27.55209948,166.57,166.52,27.55209948]
[1730480920600,27.55209948,166.58,166.52,27.55209948]
[1730480920799,27.55209948,166.57,166.52,27.55209948]
[1730480921096,6.0016,166.62,166.51,21.0197]
[1730480921310,0.12549,166.6,166.51,21.0197]
[1730480921476,0.12549,166.6,166.5,16.0453]
[1730480921681,27.55209948,166.56,166.51,27.55209948]
[1730480921881,33.55589948,166.56,166.51,27.55209948]
[1730480922193,27.55209948,166.56,166.51,33.55759948]
[1730480922393,20.0,166.55,166.51,27.55209948]
[1730480922594,20.0,166.55,166.46,15.0185]
[1730480923178,20.12549,166.53,166.44,6.23484732]
[1730480923379,20.12549,166.53,166.42,15.0214]
[1730480923578,20.12549,166.51,166.4,34.40139298]
[1730480923803,20.12549,166.51,166.4,34.17519498]
[1730480923991,0.12549,166.47,166.4,0.6134955]
[1730480924191,20.12549,166.47,166.4,0.6134955]
[1730480924595,0.12549,166.45,166.4,0.6134955]
[1730480924798,23.776884,166.44,166.4,0.6134955]
[1730480925104,23.776884,166.42,166.4,0.6134955]
[1730480925603,47.67758948,166.41,166.4,0.6134955]
[1730480925804,47.67758948,166.41,166.33,27.55209948]
[1730480925805,0.12549,166.37,166.33,27.55209948]
[1730480926016,26.011,166.36,166.33,27.55209948]
[1730480926300,26.011,166.36,166.27,21.0499]
[1730480927207,21.031,166.42,166.27,21.0499]
[1730480927386,43.776884,166.41,166.27,21.0499]
[1730480927699,0.12549,166.4,166.26,6.23385623]
[1730480927910,0.12549,166.38,166.25,6.0148]
[1730480928097,43.902374,166.38,166.25,21.0523]
[1730480928293,51.35134112,166.38,166.25,21.0523]
[1730480928494,0.12549,166.36,166.25,21.0523]
[1730480928693,27.55209948,166.3,166.25,42.58959948]
[1730480928897,27.55209948,166.3,166.25,27.55209948]
[1730480929705,65.386984,166.36,166.25,27.55209948]
[1730480929904,65.386984,166.36,166.24,21.6671955]
[1730480930290,27.55209948,166.29,166.24,34.18089498]
[1730480930598,27.55209948,166.29,166.24,28.16559498]
[1730480930797,27.55209948,166.3,166.24,28.16559498]
[1730480931107,6.0128,166.31,166.24,28.16559498]
[1730480931108,27.55209948,166.28,166.24,0.6134955]
[1730480931303,20.12549,166.3,166.24,0.6134955]
[1730480931607,27.55209948,166.25,166.24,0.6134955]
[1730480931997,47.55209948,166.25,166.24,0.6134955]
[1730480932205,77.46947348,166.25,166.24,0.6134955]
[1730480932585,105.02157296,166.25,166.24,0.6134955]
[1730480932789,43.902374,166.24,166.1,42.60239948]
[1730480932999,27.55209948,166.14,166.1,15.0503]
[1730480933398,27.55209948,166.13,166.07,34.18679498]
[1730480933615,27.55209948,166.12,166.07,34.18679498]
[1730480933991,27.55209948,166.13,166.07,34.18679498]
[1730480934194,27.55209948,166.12,166.07,21.6884955]
[1730480935008,27.55209948,166.12,166.07,6.6349955]
[1730480935201,27.55209948,166.12,166.07,34.18709498]
[1730480935404,20.0,166.14,166.07,0.6134955]
[1730480935604,0.12549,166.13,166.07,0.6134955]
[1730480936309,0.12549,166.11,166.07,0.6134955]
[1730480936516,23.902374,166.11,166.07,0.6134955]
[1730480936697,20.0,166.1,166.07,0.6134955]
[1730480936889,27.55209948,166.09,166.07,0.6134955]
[1730480937412,71.45447348,166.08,166.07,0.6134955]
[1730480937721,75.22968896,166.08,166.07,0.6134955]
[1730480938515,81.25078896,166.08,166.07,0.6134955]
[1730480939194,81.25078896,166.08,165.95,6.22581105]
[1730480939195,20.12549,166.06,165.95,6.22581105]
[1730480939399,20.12549,166.06,165.93,6.0266]
[1730480939597,20.12549,166.06,165.94,15.0656]
[1730480939791,20.12549,166.07,165.94,15.0656]
[1730480939998,20.12549,166.05,165.94,15.0656]
[1730480940204,20.12549,166.05,165.92,6.22528794]
[1730480940409,20.0,166.03,165.92,21.29278794]
[1730480940622,0.12549,166.02,165.92,15.0675]
[1730480940830,20.0,166.03,165.95,27.55209948]
[1730480941029,27.55209948,166.08,165.96,0.12549]
[1730480941202,27.55209948,166.08,165.96,20.12549]
[1730480941399,5.7683937,166.14,165.96,0.12549]
[1730480941611,37.54256712,166.15,165.94,0.12549]
[1730480941816,5.7683937,166.12,165.98,0.25098]
[1730480942035,27.55209948,166.16,165.98,44.153354]
[1730480942403,27.55209948,166.16,166.0,44.153354]
[1730480942603,5.8938837,166.15,166.0,71.70545348]
[1730480942832,5.7683937,166.15,166.0,71.70545348]
[1730480943128,5.7683937,166.2,166.02,44.153354]
[1730480943331,15.8787,166.22,166.02,24.153354]
[1730480943532,0.12549,166.21,166.02,23.902374]
[1730480944033,15.8787,166.22,166.04,23.902374]
[1730480944216,15.8787,166.22,166.06,23.902374]
[1730480944927,6.6347,166.24,166.09,0.12549]
[1730480945428,7.44896712,166.25,166.11,23.902374]
[1730480945727,5.7683937,166.26,166.13,23.902374]
[1730480946105,5.7683937,166.26,166.15,23.776884]
[1730480946307,5.7683937,166.26,166.16,0.12549]
[1730480946638,45.22966704,166.32,166.23,6.6145]
[1730480946639,5.7683937,166.32,166.23,6.6145]
[1730480946926,15.5167,166.41,166.24,24.027864]
[1730480947133,0.12549,166.39,166.24,24.027864]
[1730480947304,23.776884,166.42,166.26,0.25098]
[1730480947509,0.3649075,166.46,166.28,23.902374]
[1730480947714,0.3649075,166.46,166.3,23.902374]
[1730480947906,0.3649075,166.46,166.3,23.776884]
[1730480948109,0.3649075,166.46,166.34,23.902374]
[1730480948412,0.3649075,166.46,166.35,0.25098]
[1730480948621,0.3649075,166.46,166.39,0.25098]
[1730480948831,0.3649075,166.46,166.4,24.027864]
[1730480949130,0.3649075,166.46,166.44,0.12549]
[1730480949308,45.22966704,166.64,166.44,0.12549]
[1730480949309,6.0033,166.58,166.44,23.902374]
[1730480949515,45.22966704,166.64,166.48,0.12549]
[1730480949713,6.0013,166.63,166.48,23.902374]
[1730480949948,5.7683937,166.63,166.5,24.027864]
[1730480950111,11.7697937,166.63,166.51,21.0197]
[1730480950444,5.7683937,166.63,166.52,23.776884]
[1730480950812,45.22966704,166.62,166.57,45.22966704]
[1730480951034,45.22966704,166.62,166.56,45.22966704]
[1730480951611,0.12549,166.61,166.49,23.776884]
[1730480951812,0.12549,166.61,166.48,45.22966704]
[1730480952048,20.12549,166.61,166.48,66.25296704]
[1730480952215,6.12679,166.63,166.48,21.0233]
[1730480952838,0.12549,166.59,166.49,23.776884]
[1730480953045,23.902374,166.59,166.43,15.0207]
[1730480953330,20.12549,166.58,166.43,15.0207]
[1730480953523,23.776884,166.57,166.43,15.0207]
[1730480953726,20.0,166.56,166.43,15.0207]
[1730480953931,0.12549,166.57,166.43,15.0207]
[1730480954313,20.0,166.55,166.43,15.0207]
[1730480954836,45.22966704,166.54,166.49,45.22966704]
[1730480955636,0.12549,166.54,166.43,15.0207]
[1730480955809,20.0,166.55,166.43,15.0207]
[1730480956009,26.0016,166.62,166.44,0.12549]
[1730480956244,45.22966704,166.55,166.5,45.22966704]
[1730480956544,0.12549,166.57,166.45,6.0076]
[1730480956712,0.12549,166.57,166.46,23.776884]
[1730480956909,26.0031,166.58,166.47,0.25098]
[1730480957326,45.22966704,166.58,166.53,45.22966704]
[1730480957531,45.22966704,166.57,166.51,45.22966704]
[1730480957740,45.22966704,166.56,166.51,45.22966704]
[1730480957920,6.0013,166.63,166.53,45.22966704]
[1730480957921,45.22966704,166.59,166.53,45.22966704]
[1730480958124,45.22966704,166.6,166.54,45.22966704]
[1730480958341,45.22966704,166.61,166.56,45.22966704]
[1730480958536,20.0,166.6,166.56,45.22966704]
[1730480958719,65.22966704,166.6,166.55,45.22966704]
[1730480959244,20.0,166.6,166.55,45.22966704]
[1730480959613,6.0027,166.59,166.55,45.22966704]
[1730480959820,45.22966704,166.61,166.55,45.22966704]
[1730480960020,45.22966704,166.61,166.56,23.776884]
[1730480960228,6.0004,166.66,166.56,23.776884]
[1730480960536,0.8505115,166.69,166.56,23.776884]
[1730480960747,5.9998,166.68,166.56,23.776884]
[1730480960924,5.9998,166.68,166.56,69.00655104]
[1730480961254,5.9998,166.68,166.57,0.25098]
[1730480961428,0.8505115,166.69,166.57,0.25098]
[1730480961627,6.8496115,166.69,166.61,23.776884]
[1730480961951,0.8505115,166.69,166.61,23.776884]
[1730480962123,0.8505115,166.69,166.62,20.37647]
[1730480962446,0.8505115,166.69,166.68,45.22966704]
[1730480963035,0.8505115,166.69,166.68,69.00655104]
[1730480963426,0.8505115,166.69,166.68,23.776884]
[1730480964016,0.8505115,166.69,166.67,23.776884]
[1730480964738,0.8505115,166.69,166.68,45.22966704]
[1730480965321,0.8505115,166.69,166.67,69.00655104]
[1730480966275,0.8505115,166.69,166.68,23.776884]
[1730480966617,0.8505115,166.69,166.67,23.776884]
[1730480966822,0.8505115,166.69,166.67,69.00655104]
[1730480967338,45.22966704,166.68,166.63,45.22966704]
[1730480967520,45.22966704,166.65,166.59,45.22966704]
[1730480967720,45.22966704,166.65,166.6,45.22966704]
[1730480967950,45.22966704,166.66,166.6,45.22966704]
[1730480968129,45.22966704,166.66,166.56,51.23316704]
[1730480968130,45.22966704,166.64,166.59,45.22966704]
[1730480968466,45.22966704,166.65,166.6,45.22966704]
[1730480969534,45.22966704,166.65,166.59,45.22966704]
[1730480969842,45.22966704,166.64,166.59,45.22966704]
[1730480970056,45.22966704,166.62,166.56,45.22966704]
[1730480970232,45.22966704,166.62,166.57,45.22966704]
[1730480970432,45.22966704,166.61,166.55,45.22966704]
[1730480970646,45.22966704,166.6,166.55,45.22966704]
[1730480971031,45.22966704,166.58,166.53,45.22966704]
[1730480971269,45.22966704,166.57,166.52,45.22966704]
[1730480971450,45.22966704,166.64,166.49,45.22966704]
[1730480971755,45.22966704,166.56,166.51,45.22966704]
[1730480971951,45.22966704,166.58,166.48,66.25256704]
[1730480972160,45.22966704,166.6,166.49,6.0063]
[1730480972733,45.22966704,166.59,166.54,45.22966704]
[1730480972947,0.12549,166.61,166.49,6.0063]
[1730480973143,20.12549,166.61,166.5,23.776884]
[1730480973455,20.12549,166.61,166.49,6.0063]
[1730480973671,45.22966704,166.57,166.51,45.22966704]
[1730480974154,45.22966704,166.57,166.52,21.0184]
[1730480974370,45.22966704,166.57,166.53,0.12549]
[1730480974663,6.0012,166.64,166.53,24.153354]
[1730480974953,20.0,166.63,166.53,24.153354]
[1730480975361,20.0,166.63,166.53,23.776884]
[1730480975362,0.12549,166.62,166.53,23.776884]
[1730480975660,0.12549,166.62,166.52,21.0184]
[1730480976048,20.0,166.63,166.49,30.0318]
[1730480976269,20.0,166.61,166.49,51.054]
[1730480976756,20.0,166.61,166.52,45.22966704]
[1730480976960,0.12549,166.6,166.52,45.22966704]
[1730480977165,0.12549,166.6,166.49,21.0222]
[1730480977367,0.12549,166.58,166.44,15.0199]
[1730480977546,0.12549,166.58,166.44,21.0277]
[1730480977748,20.0,166.59,166.45,0.12549]
[1730480978052,21.0084,166.6,166.46,21.026]
[1730480978563,45.22966704,166.55,166.5,45.22966704]
[1730480979260,45.22966704,166.56,166.51,45.22966704]
[1730480979454,6.0042,166.55,166.51,45.22966704]
[1730480979776,51.23346704,166.56,166.51,45.22966704]
[1730480980070,15.006,166.6,166.52,23.776884]
[1730480980071,20.0,166.59,166.52,23.776884]
[1730480980365,45.22966704,166.57,166.52,23.776884]
[1730480980745,45.22966704,166.57,166.52,69.00655104]
[1730480980946,45.22966704,166.58,166.53,45.22966704]
[1730480981367,6.0034,166.57,166.52,69.00655104]
[1730480982277,51.23306704,166.57,166.52,69.00655104]
[1730480982565,6.0013,166.63,166.53,0.25098]
[1730480982864,51.23096704,166.63,166.58,45.22966704]
[1730480983058,6.0013,166.63,166.59,45.22966704]
[1730480983258,6.0013,166.63,166.55,0.12549]
[1730480983565,51.23096704,166.63,166.58,45.22966704]